Cogmind - Beta 17 @@@ ROGUE MODE // 2026.07.15 @ 09:00:48 Player: Smol John Result: Self-destructed Performance ------------- Evolutions (3) 1500 Regions Visited (6) 1200 Robots Destroyed (32) 160 Value Destroyed (932) 932 Prototype IDs (25) 500 Alien Tech Used (0) 0 Bonus (337) 337 TOTAL SCORE: 4629 Bonus ------- Follower Combat Kills 50 Aligned with FarCom 300 Friendly Fire -13 Cogmind --------- Core Integrity 522/700 Matter 287/300 Energy 100/100 System Corruption 4% Temperature Cool (0) Movement Treading (160) Location -7/Factory Parts ------- > --- POWER (2) -------- (None) > --- PROPULSION (4) --- Light Treads > --- UTILITY (5) ------ Lightpack 2.0 Launcher Guidance Computer > --- WEAPON (2) ------- Maul > --- INVENTORY (40) --- Improved Cooling System Small Storage Unit Improved Terrain Scanner Improved Melee Analysis Suite Kinecellerator Weapon Cycler Improved Light Armor Plating Improved Medium Armor Plating Hacking Suite Rocket Launcher Improved Datajack Peak State ------------ > --- POWER ------------ Improved Deuterium Engine Enhanced Nuclear Core > --- PROPULSION ------- Titanium Leg Improved Carbon-fiber Leg Aerolev Unit Aerolev Unit > --- UTILITY ---------- Lightpack 2.0 Launcher Guidance Computer Hacking Suite > --- WEAPON ----------- Field Laser Maul > --- INVENTORY -------- Light Treads Compact Wheel Small Storage Unit Improved Terrain Scanner Improved Melee Analysis Suite Improved Light Armor Plating Hacking Suite Rocket Launcher Improved Datajack [Rating: 68] Favorites ----------- Power Light Deuterium Engine Engine Light Deuterium Engine Power Core Enhanced Nuclear Core Propulsion Aluminum Leg Treads Light Treads Leg Aluminum Leg Wheel Compact Wheel Hover Unit Aerolev Unit Utility Launcher Guidance Computer Storage Small Storage Unit Processor Launcher Guidance Computer Hackware Hacking Suite Weapon Mini Grenade Launcher Energy Gun Field Laser Energy Cannon Beam Cannon Ballistic Gun Light Assault Rifle Ballistic Cannon Light Cannon Launcher Mini Grenade Launcher Impact Weapon Maul Special Melee Weapon Improved Datajack Build | -11 -10 -10 -10 -9 -8 -7 ------- Run | Yrd Mat Min Exi Min Mat Fac Slots Evolved 6 | . . . . . 4 2 Power 1 | . . . . . . 1 Propulsion 2 | . . . . . 2 . Utility 3 | . . . . . 2 1 Weapon . | . . . . . . . Parts Attached 31 | 6 4 2 . 3 5 11 Power 6 | 1 1 1 . . 1 2 Engine 5 | 1 1 1 . . 1 1 Core 1 | . . . . . . 1 Reactor . | . . . . . . . Propulsion 10 | 2 . . . 1 2 5 Treads 1 | . . . . . . 1 Leg 6 | 2 . . . 1 2 1 Wheel 1 | . . . . . . 1 Hover 2 | . . . . . . 2 Flight . | . . . . . . . Utility 5 | 1 1 . . 1 1 1 Device . | . . . . . . . Storage 2 | 1 . . . . 1 . Processor 2 | . 1 . . 1 . . Hackware 1 | . . . . . . 1 Protection . | . . . . . . . Artifact . | . . . . . . . Weapon 10 | 2 2 1 . 1 1 3 Energy Gun 2 | 1 . . . . . 1 Energy Cannon 1 | . 1 . . . . . Ballistic Gun 1 | 1 . . . . . . Ballistic Cannon 2 | . 1 . . 1 . . Launcher 2 | . . 1 . . . 1 Special Weapon . | . . . . . . . Impact Weapon 1 | . . . . . 1 . Slashing Weapon . | . . . . . . . Piercing Weapon . | . . . . . . . Special Melee Weapon 1 | . . . . . . 1 Unidentified Prototypes 2 | . . . . . . 2 Parts Lost 21 | . . 2 . 3 7 9 Power 5 | . . 1 . . 2 2 Propulsion 9 | . . . . 1 3 5 Utility 2 | . . . . 1 . 1 Weapon 5 | . . 1 . 1 2 1 Highest Loss Streak 7 | . . 2 . 2 7 5 To Critical Strikes . | . . . . . . . Average Backups 8 | 4 7 7 7 5 8 10 Power . | . . . . . . . Propulsion 2 | 3 4 5 4 2 3 1 Utility 3 | . . 1 2 2 4 6 Weapon . | . 1 1 . . . . Tool/Special . | . . . . . . . Unused Backups 13 | . 1 . 2 . . 10 Power . | . . . . . . . Propulsion 3 | . . . 2 . . 1 Utility 9 | . . . . . . 9 Weapon 1 | . 1 . . . . . Tool/Special . | . . . . . . . Average Slot Usage (%) 83 | . 98 98 100 97 69 66 Engine 9 | . 14 13 14 14 7 3 Core 1 | . . . . . . 4 Leg 20 | . 28 28 28 28 27 8 Hover 4 | . . . . . . 10 Storage 10 | . 14 14 14 14 8 7 Processor 10 | . 12 14 14 13 9 7 Hackware 2 | . . . . . . 6 Energy Gun 2 | . 2 . . . . 4 Energy Cannon 4 | . 11 14 14 . . . Ballistic Cannon 5 | . 11 4 . 11 8 . Launcher 5 | . . 8 14 14 8 1 Impact Weapon 2 | . . . . . . 5 Peak Build Rating 68 | 6 7 11 13 16 49 68 Average Rating 31 | 4 6 9 11 14 44 58 On Entrance 13 | . 6 7 11 13 16 42 Avg Prop Armor Cover (%) 12 | . . . . . . 12 Naked Turns . | . . . . . . . Heaviest Build 30 | 11 14 14 14 14 14 30 Greatest Support 47 | 20 20 20 20 20 47 35 Greatest Overweight (x) 2 | 1 . . . . . 2 Average Overweight (x) . | . . . . . . . Largest Inventory Capacity 40 | 8 8 8 8 8 40 40 Average Capacity 22 | 6 8 8 8 8 39 40 Most Carried 13 | 7 8 8 8 8 13 12 Average Carried 8 | 5 7 7 7 7 9 10 Final Capacity 40 | 8 8 8 8 8 40 40 Final Carried 12 | 6 7 8 8 8 12 11 Class Distribution -------------------- 45% | Hauler-Mutant 43% | Mutant 10% | Scavenger-Mutant Dominant Class ---------------- Mutant | -10/Materials Mutant | -10/Mines Mutant | -10/Exiles Scavenger-Mutant | -9/Mines Hauler-Mutant | -8/Materials Hauler-Mutant | -7/Factory Resources | -11 -10 -10 -10 -9 -8 -7 ----------- Run | Yrd Mat Min Exi Min Mat Fac Matter Collected 832 | 216 159 . . 143 3 311 Remotely . | . . . . . . . Salvage Created 765 | . 280 . . 150 24 311 Parts 46 | . 18 . . 7 3 18 Haulers Intercepted . | . . . . . . . Recyclers Shooed . | . . . . . . . Parts Field Recycled . | . . . . . . . Retrieved Matter . | . . . . . . . Parts Self-Destructed . | . . . . . . . Prevented . | . . . . . . . Parts Restored . | . . . . . . . Kills | -11 -10 -10 -10 -9 -8 -7 ------- Run | Yrd Mat Min Exi Min Mat Fac Combat Hostiles Destroyed 22 | . 6 . . 10 . 6 Melee 2 | . . . . . . 2 Guns 2 | . . . . . . 2 Cannons 6 | . 6 . . . . . AOE 10 | . . . . 10 . . Classes Destroyed 11 | . 5 . . 2 1 3 Worker 2 | . . . . . . 2 Builder 3 | . 1 . . . . 2 Tunneler 1 | . . . . 1 . . Recycler 1 | . 1 . . . . . Operator 1 | . . . . . 1 . Watcher 2 | . 1 . . . 1 . Swarmer 5 | . 2 . . 3 . . Grunt 11 | . 4 . . 5 . 2 Duelist 2 | . . . . 2 . . Sentry 2 | . . . . . . 2 Programmer 2 | . . . . . . 2 Best Kill Streak 4 | . 4 . . 4 2 3 Combat Bots Only 3 | . 3 . . 3 . 1 Max Kills in Single Turn 3 | . 1 . . 2 2 3 Gunslinging . | . . . . . . . Exploded 2 | . . . . 2 . . Melee 1 | . . . . . . 1 Uniques/NPCs Destroyed . | . . . . . . . Combat | -11 -10 -10 -10 -9 -8 -7 -------- Run | Yrd Mat Min Exi Min Mat Fac Hostile Shots Fired 203 | . 23 . . 28 30 122 Missed 61 | . 4 . . 8 14 35 Hits 142 | . 19 . . 20 16 87 Melee 2 | . . . . 2 . . Projectile 140 | . 19 . . 18 16 87 AOE 4 | . . 4 . . . . Critical Strikes 2 | . . . . . 1 1 Damage Taken 2256 | . 184 161 . 430 541 940 Core 513 | . 38 19 . 116 162 178 Absorbed by Shields . | . . . . . . . Core Remaining (%) 66 | 100 . . . 30 70 . Volleys Fired 71 | . 23 1 . 15 9 23 Largest 2 | . 2 1 . 2 1 1 Hottest 90 | . 90 60 . 90 30 63 Shots Fired 106 | . 46 1 . 27 9 23 Gun 24 | . 2 . . . . 22 Cannon 57 | . 44 1 . 12 . . Launcher 25 | . . . . 15 9 1 Special . | . . . . . . . Kinetic 34 | . 23 . . 11 . . Thermal 47 | . 23 1 . 1 . 22 Explosive 25 | . . . . 15 9 1 Electromagnetic . | . . . . . . . Robot Hit Streak 6 | . 4 . . 5 1 6 Robot Miss Streak 4 | . 2 1 . 2 3 4 Penetration Max . | . . . . . . . Secondary Targets . | . . . . . . . Shots Hit Robots 74 | . 26 . . 10 1 37 Core Hits 45 | . 9 . . 20 4 12 Critical Kills 1 | . . . . . . 1 Critical Parts Destroyed 5 | . . . . . . 5 Critical Strikes 7 | . 1 . . . . 6 Burn 1 | . 1 . . . . . Smash 6 | . . . . . . 6 Melee Attacks 38 | . . . . . . 38 Impact 38 | . . . . . . 38 Slashing . | . . . . . . . Piercing . | . . . . . . . Sneak Attacks 1 | . . . . . . 1 Combat Hostiles . | . . . . . . . Follow-up Attacks . | . . . . . . . Damage Inflicted 3113 | . 474 . . 1237 155 1247 Guns 289 | . 19 . . . . 270 Cannons 509 | . 455 . . 54 . . Explosions 1532 | . . . . 1183 155 194 Melee 783 | . . . . . . 783 Ramming . | . . . . . . . Kinetic 307 | . 270 . . 37 . . Thermal 491 | . 204 . . 17 . 270 Explosive 1532 | . . . . 1183 155 194 Electromagnetic . | . . . . . . . Impact 783 | . . . . . . 783 Slashing . | . . . . . . . Piercing . | . . . . . . . Highest Corruption 4 | . . . . . . 4 Average Corruption 2 | . . . . . . 2 Corruption Purged . | . . . . . . . Corruption Blocked . | . . . . . . . Effects 10 | . . . . . . 10 Message Errors 4 | . . . . . . 4 Matter Fused 1 | . . . . . . 1 Heat Flow Errors 2 | . . . . . . 2 Energy Discharges 1 | . . . . . . 1 Data Loss (minor) 2 | . . . . . . 2 Overload Shots . | . . . . . . . Overflow Damage 356 | . 10 . . 74 4 268 Projectiles 10 | . 10 . . . . . Explosions 78 | . . . . 74 4 . Melee 268 | . . . . . . 268 Knockbacks 9 | . 4 . . 1 . 4 Impact 4 | . . . . . . 4 Kinetic 5 | . 4 . . 1 . . Secondary . | . . . . . . . Self-Inflicted Damage 187 | . . . . 148 39 . Shots 6 | . . . . 5 1 . Rammed . | . . . . . . . Targets Rammed . | . . . . . . . Kicked . | . . . . . . . Crushed . | . . . . . . . Highest Temperature 480 | . 302 15 . 45 . 480 Average Temperature 127 | . 106 12 . 21 . 215 Received Heat Transfer 564 | . 54 . . 111 99 300 Effects 12 | . 1 . . . . 11 Shutdowns 5 | . . . . . . 5 Energy Bleed 3 | . 1 . . . . 2 Damage (major) 4 | . . . . . . 4 Siege Activations . | . . . . . . . Martial Activations . | . . . . . . . Shielding Activations . | . . . . . . . Robots Disrupted . | . . . . . . . Combat Hostiles . | . . . . . . . Robots Corrupted 2 | . . . . . . 2 Combat Hostiles 2 | . . . . . . 2 Parts Fried 3 | . . . . . . 3 Impact Corruptions 10 | . . . . . . 10 Robots Melted . | . . . . . . . Combat Hostiles . | . . . . . . . Parts Melted . | . . . . . . . Heat Transferred 1147 | . 518 . . 37 . 592 Parts Sabotaged . | . . . . . . . Parts Stolen . | . . . . . . . Parts Stripped . | . . . . . . . Power Chain Reactions . | . . . . . . . Alert | -11 -10 -10 -10 -9 -8 -7 ------- Run | Yrd Mat Min Exi Min Mat Fac Maximum Alert Level 1 | . . . . 1 . . Low Security (%) 96 | 100 100 100 . 84 100 100 Level 1 3 | . . . . 15 . . Level 2 . | . . . . . . . Level 3 . | . . . . . . . Level 4 . | . . . . . . . Level 5 . | . . . . . . . High Security . | . . . . . . . Max Security . | . . . . . . . Peak Influence 228 | . 85 19 . 228 82 49 Initial 82 | . . 19 . . 82 . Average 32 | . 23 3 . 93 42 7 Influence Increases 880 | . 190 . . 452 56 182 Destroy 0b10 Robot/C 480 | . 120 . . 240 . 120 Destroy 0b10 Robot/NC 55 | . 15 . . 5 15 20 Destroy Leader 94 | . 32 . . 40 2 20 Allied During Kill 12 | . . . . 12 . . Successful Hack 8 | . 8 . . . . . Disable Machine 90 | . . . . 90 . . Destroy Structure 126 | . . . . 65 39 22 Partial Spotted 15 | . 15 . . . . . Influence Decreases 880 | . 139 51 . 239 269 182 Entered New Map 163 | . . 32 . . 131 . Time Decay 616 | . 139 10 . 209 90 168 Lost Part 101 | . . 9 . 30 48 14 Squads Dispatched 13 | . 3 . . . 2 8 Investigation 3 | . 2 . . . . 1 Extermination 3 | . . . . . . 3 Reinforcement 4 | . 1 . . . 2 1 Assault . | . . . . . . . Garrison 3 | . . . . . . 3 Intercept . | . . . . . . . Searches Triggered . | . . . . . . . Construction Impeded . | . . . . . . . Haulers Reinforced 1 | . . . . . . 1 Active Scanning Responses . | . . . . . . . Cargo Convoy Interrupts . | . . . . . . . Stealth | -11 -10 -10 -10 -9 -8 -7 --------- Run | Yrd Mat Min Exi Min Mat Fac Distress Signals 1 | . . . . . . 1 Communications Jammed . | . . . . . . . Distress Signals . | . . . . . . . Times Spotted 40 | . 11 1 . 10 9 9 Peak Tracking Total 5 | . 3 1 . 3 5 5 Tactical Retreats . | . . . . . . . Traps | -11 -10 -10 -10 -9 -8 -7 ------- Run | Yrd Mat Min Exi Min Mat Fac Traps Triggered 2 | . 1 . . . . 1 Indirectly . | . . . . . . . Trap Hack Attempts 28 | . . . . . . 28 Triggered . | . . . . . . . Disarmed 1 | . . . . . . 1 Reprogrammed . | . . . . . . . Reused . | . . . . . . . Traps Extracted . | . . . . . . . Installed . | . . . . . . . Triggered . | . . . . . . . Machines | -11 -10 -10 -10 -9 -8 -7 ---------- Run | Yrd Mat Min Exi Min Mat Fac Machines Disabled 6 | . . . . 6 . . Max in Single Turn 3 | . . . . 3 . . Machines Repaired . | . . . . . . . Machines Dismantled . | . . . . . . . Machines Sabotaged . | . . . . . . . Overloaded Fab Kills . | . . . . . . . Hacking | -11 -10 -10 -10 -9 -8 -7 --------- Run | Yrd Mat Min Exi Min Mat Fac Machines Accessed 7 | . 4 . 2 . . 1 Terminals 5 | . 4 . . . . 1 Fabricators . | . . . . . . . Repair Stations . | . . . . . . . Recycling Units . | . . . . . . . Scanalyzers . | . . . . . . . Garrison Access . | . . . . . . . Total Hacks 17 | . 8 . 6 . . 3 Successful 9 | . 3 . 6 . . . Failed 8 | . 5 . . . . 3 Catastrophic 3 | . 2 . . . . 1 Database Lockouts . | . . . . . . . Manual 8 | . 7 . 1 . . . Terminals 11 | . 8 . . . . 3 Fabricators . | . . . . . . . Repair Stations . | . . . . . . . Recycling Units . | . . . . . . . Scanalyzers . | . . . . . . . Garrison Access . | . . . . . . . Terminal Hacks 8 | . 2 . 6 . . . Record 5 | . . . 5 . . . Branch Access Points 1 | . 1 . . . . . Terminal Index 1 | . 1 . . . . . Proto ID Catalog 1 | . . . 1 . . . Fabricator Hacks . | . . . . . . . Repair Station Hacks . | . . . . . . . Recycling Unit Hacks . | . . . . . . . Scanalyzer . | . . . . . . . Garrison Access Hacks . | . . . . . . . Unauthorized Hacks 1 | . 1 . . . . . Terminals 1 | . 1 . . . . . Sabotage 1 | . 1 . . . . . Fabricators . | . . . . . . . Repair Stations . | . . . . . . . Recycling Units . | . . . . . . . Scanalyzers . | . . . . . . . Garrison Access . | . . . . . . . Data Cores Recovered 1 | . . . . . 1 . Used . | . . . . . . . Hacking Detections 4 | . 3 . . . . 1 Full Trace Events 3 | . 2 . . . . 1 Feedback Events . | . . . . . . . Feedback Blocked . | . . . . . . . Robot Schematics Acquired . | . . . . . . . Robots Built . | . . . . . . . Authchips . | . . . . . . . Time . | . . . . . . . Total Robot Build Rating . | . . . . . . . Part Schematics Acquired . | . . . . . . . Parts Built . | . . . . . . . Authchips . | . . . . . . . Time . | . . . . . . . Total Part Build Rating . | . . . . . . . Part Studies Acquired . | . . . . . . . Parts Repaired . | . . . . . . . Time . | . . . . . . . Parts Recycled . | . . . . . . . Recycled Matter . | . . . . . . . Retrieved Matter . | . . . . . . . Retrieved Components . | . . . . . . . Parts Scanalyzed . | . . . . . . . Part Schematics Acquired . | . . . . . . . Parts Damaged . | . . . . . . . Bothacking | -11 -10 -10 -10 -9 -8 -7 ------------ Run | Yrd Mat Min Exi Min Mat Fac Used RIF Installer . | . . . . . . . Robots Hacked . | . . . . . . . Non-combat . | . . . . . . . Combat . | . . . . . . . Robot Hacks Applied . | . . . . . . . Relay Couplers Released . | . . . . . . . Fabnet Peak Effective % . | . . . . . . . Robots Rewired . | . . . . . . . Allies Hacked . | . . . . . . . Hacks Repelled . | . . . . . . . Allies | -11 -10 -10 -10 -9 -8 -7 -------- Run | Yrd Mat Min Exi Min Mat Fac Total Allies 3 | . . 1 . 2 . . Largest Group 2 | . . 1 1 2 1 . Highest-Rated Group 49 | . . 31 31 49 31 . Highest-Rated Ally 31 | . . 31 31 31 31 . Total Orders . | . . . . . . . Ally Attacks 27 | . . . . 10 17 . Total Damage 380 | . . . . 147 233 . Kills 3 | . . . . 2 1 . Allies Corrupted . | . . . . . . . Allies Melted . | . . . . . . . Intel | -11 -10 -10 -10 -9 -8 -7 ------- Run | Yrd Mat Min Exi Min Mat Fac Active Infowar (turns) . | . . . . . . . Robot Analysis Total . | . . . . . . . Derelict Logs Recovered 2 | . . . . 2 . . Drone Launches . | . . . . . . . Drone Recoveries . | . . . . . . . Exploration | -11 -10 -10 -10 -9 -8 -7 ------------- Run | Yrd Mat Min Exi Min Mat Fac Turns Passed 2929 | 92 472 142 281 612 219 1111 Spaces Moved 1949 | 62 322 114 233 431 150 637 Core 19 | 16 . . . . . 3 Treads 76 | . . . . . . 76 Legs 1622 | 46 322 114 233 431 150 326 Wheels 232 | . . . . . . 232 Hover . | . . . . . . . Flight . | . . . . . . . Fastest Speed 50 | 50 120 120 120 120 120 115 Average Speed 123 | 124 120 120 120 120 121 131 Slowest Speed 190 | 190 120 120 120 120 130 190 Overloaded Moves . | . . . . . . . Propulsion Burnouts . | . . . . . . . Robots Hopped . | . . . . . . . Potential Cave-ins 2 | . . . . . . 2 Cave-ins Triggered . | . . . . . . . Exploration Rate (%) 36 | 3 51 20 60 85 21 13 Regions Visited 6 Branch Regions 3 Pre-discovered Areas 2 | . . . 1 1 . . Known Exits Taken 1 | . 1 . . . . . Unknown Exits Taken 5 | 1 . 1 1 1 1 . Scrap Searched 3 | . . . . 3 . . Spaces Dug 13 | . . . . . . 13 Terrain Destroyed 225 | . . . . 96 106 23 Melee 13 | . . . . . . 13 Projectile . | . . . . . . . AOE 212 | . . . . 96 106 10 Terrain Rammed . | . . . . . . . Walls Destroyed . | . . . . . . . Machines Disabled . | . . . . . . . Actions | -11 -10 -10 -10 -9 -8 -7 --------- Run | Yrd Mat Min Exi Min Mat Fac Total 2272 | 74 362 117 236 498 176 809 Wait 112 | . 7 . . 48 . 57 Move 1943 | 61 321 113 232 430 149 637 Hop . | . . . . . . . Pick Up 36 | 7 4 1 1 2 12 9 Fast Attach 15 | 5 1 2 . 1 2 4 Attach 15 | 1 1 . . 2 3 8 Detach . | . . . . . . . Swap 6 | . 2 . . . . 4 Drop 8 | . 3 . 3 . 1 1 Fire 71 | . 23 1 . 15 9 23 Melee 38 | . . . . . . 38 Ram . | . . . . . . . Kick . | . . . . . . . Crush . | . . . . . . . Escape Stasis . | . . . . . . . Rewire . | . . . . . . . Trap 28 | . . . . . . 28 Miscellaneous . | . . . . . . . Route ------- -11/Scrapyard -10/Materials (discovered 2 exits: [*Mat] / *Min) -10/Mines -10/Exiles -9/Mines -8/Materials (discovered 2 exits: *Fac / Sto) -7/Factory History --------- Turn | Location | Event 14 | -11/Scrapyard | Discovered new exit (range 15) 93 | -11/Scrapyard | Entered Materials 310 | -10/Materials | Build established: Mutant 476 | -10/Materials | Discovered new exit (range 16) 519 | -10/Materials | Discovered new exit (range 16) 544 | -10/Materials | Identified exit to Mines 565 | -10/Materials | Entered Mines 566 | -10/Mines | Assembled infested the area 592 | -10/Mines | Met 8R-AWN 660 | -10/Mines | Received a Mining Laser from a helpful Derelict 701 | -10/Mines | Discovered new exit (range 5) 707 | -10/Mines | Entered Exiles 707 | -10/Exiles | Accompanied by 1 ally 740 | -10/Exiles | Welcomed by 8R-AWN 754 | -10/Exiles | Met EX-HEX 802 | -10/Exiles | Met EX-BIN 821 | -10/Exiles | Aligned with FarCom system 823 | -10/Exiles | Given EX-Vault access code 857 | -10/Exiles | Opened EX-Vault 867 | -10/Exiles | Found Lightpack 2.0 891 | -10/Exiles | Warned to stay clear of 0b10 Research branches 926 | -10/Exiles | Met EX-DEC 933 | -10/Exiles | Learned location of Zion (-6) 973 | -10/Exiles | Discovered new exit (range 10) 988 | -10/Exiles | Left Exiles lab with Lightpack 2.0 988 | -10/Exiles | Entered Mines 989 | -9/Mines | Met a Derelict bent on vengeance 992 | -9/Mines | Core integrity fell below 50% 1509 | -9/Mines | Learned Materials interactive machine intel 1512 | -9/Mines | Learned location of Storage (-8) 1589 | -9/Mines | Build established: Scavenger-Mutant 1593 | -9/Mines | Discovered new exit (range 6) 1600 | -9/Mines | Entered Materials 1600 | -8/Materials | Accompanied by 1 ally 1600 | -8/Materials | Evolved 4 slots: Propulsion x2, Utility x2 1601 | -8/Materials | Identified exit to Storage 1602 | -8/Materials | Loaded intel: 19 interactive machine locations 1605 | -8/Materials | Led the pair of lost Derelicts to an unsafe place 1800 | -8/Materials | Discovered new exit (range 16) 1819 | -8/Materials | Entered Factory 1819 | -7/Factory | Evolved 2 slots: Power x1, Utility x1 1823 | -7/Factory | Lost 7 parts (2p3n2w) 1899 | -7/Factory | Build established: Hauler-Mutant 2256 | -7/Factory | Garrison activated, responded to threat 2649 | -7/Factory | Lost 3 parts (1p2n) 2825 | -7/Factory | Lost 5 parts (1p2n1u1w) 2930 | -7/Factory | Self-destructed Last Messages --------------- corrupted. 02777_ Imp. Heat Sink fried. 02782_ Field Laser destroyed. 02785_ K-01 Serf collects debris. 02785_ Imp. Carbon-fiber Leg destroyed. 02788_ Com. Wheel destroyed. 02791_ Hacking Suite destroyed. 02794_ Enh. Nuclear Core destroyed. 02800_ Y-54 Guardian destroyed. 02801_ Acquired 40 matter. 02806_ Acquired 61 matter. 02808_ K-01 Serf collects debris. 02813_ System corrupted: Heat flow error (+207). 02815_ K-01 Serf collects debris. 02842_ System corrupted: Component data lost. 02878_ 5BOTBGJAV 02924_ ALERT: Potential suspicious activity detected, Programmers report to Factory Zone 4A. [Achievement: Back For More] Map ----- +----------------------------------------------------+ | # ?????# """ ## [ /!""" """ #??????? | | # ??????# "T ## =# #??????? | | # #??????# """ ## !#[ ] #??????? | | # #??????# "" ## # !#??????? | | # #??????# ## # ! #??????? | | # #####+#####"#### ###########??????? | | # + ## #?# #?###????????????? | | ! # # ! "###?# #????????????????? | | + # ###??# #????????????????? | | # # #????# #????????????????? | | ###### ################^ ^ ^#????????????????? | | ?????###+#+#????# [ # ^ ^ #????????????????? | | ????????????????# # #????????????????? | | ????????????????# # #????????????????? | | ????????????????# + #????????????????? | | ????????????????# """""" # #????????????????? | | ????????????????#! """""" # #????????????????? | | ????????????????# """""" # #????????????????? | | ????????????????# ?""""" # #????????????????? | | ????????????#####+######### #????????????????? | | ????????????# # #????????????????? | | ????????????# """ """ """ # #????????????????? | | ????????????# """ """ """ # #????????????????? | | ????????????# """ """ """ # #????????????????? | | ????????????# # #????????????????? | | ????????????# @# #???? ??????????? | | ????????????###########+### #??"F" ??????????? | | ???????????????????# # """" ????????? | | ???????????????????# + """ ????????? | | ???????????????????# """" # ??????? | | ???????????????????# """" #?? #???? | | ???????????????????# """" #????![! #???? | | ???????????????????# """" #####??????! [ #???? | | ???????????????????# """" #???????????? ????? | | ??????????????????? """" #????????Y?????##????? | | ?????????????????? #????????????????????? | | ?????????????g??? """" #????????????????????? | | ????????????????? ?""" #???????g????????????? | | ????????????????? ???"" ???????g????????????? | | ?????????????????###?????" ????????????????????? | | ?????????????????????????" ????????????????????? | | ?????????????????????????" ????????????????????? | | ????????????????????????? ????????????????????? | | ?????????????????????????? ????????????????????? | | ?????????????????????????????????????????????????? | | ?????????????????????????????????????????????????? | | ?????????????????????????????????????????????????? | | ?????????????????????????????????????????????????? | | ?????????????????????????????????????????????????? | | ?????????????????????????????????????????????????? | +----------------------------------------------------+ Best States ------------- Heat Dissipation 34 Energy Generation 28 Energy Capacity 490 Matter Stores 300 Matter Capacity 300 Sight Range 16 Terrain Scan Density 10 Evasion (%) 55 Targeting Accuracy 5 Launcher Accuracy 20 Recoil Reduction 1 Offensive Hacking 10 Item Schematics ----------------- None Robot Schematics ------------------ None Fabricated ------------ Nothing Repaired ---------- Nothing Studied --------- None Alien Tech Used ----------------- None Achievements -------------- Back For More Brute Force Challenges ------------ None Game ------ Seed MetaCountertargetingClaw Manual? 0 Play Time 00:25:10 Cumulative 34.9 hours Start 2026.07.15 @ 08:36:08 End 2026.07.15 @ 09:00:48 Sessions 1 Manual Loads 0 Difficulty Rogue Special Mode None Game No. 50 Rogue 50 Adventurer 0 Explorer 0 Win Type - Total 0 Types 0/0/0/0/0/0/0/0/0/0 Lore% 29 Gallery% 30 Achievement% 23 Wizard Run 0 Options --------- Layout 1 ASCII 0 Keyboard 0 Movement Mouse Keybinds 0 Fullscreen 1 Font 20/SmallcapsGlow Map View 50x35 Zoom Use 0% Tactical HUD 1 Map Filters NONE Filters NONE Steam 1 RUN: 11281f97-fb9e-476d-8632-0b0827453935